bitfinex/quotes_ETHUSD_20230116
["timestamp","ask_amount","ask_price","bid_price","bid_amount"]
[1673892269387,3.27278678,1561.6,1561.5,0.03965416]
[1673892271271,0.95739537,1561.7,1561.5,0.97265416]
[1673892271504,4.23018215,1561.7,1561.5,0.97265416]
[1673892271703,0.95739537,1561.7,1561.5,0.97265416]
[1673892272082,7.36067537,1561.7,1561.5,0.03965416]
[1673892272299,15.20004843,1561.7,1561.5,0.03965416]
[1673892272832,0.95739537,1561.6,1561.5,0.03965416]
[1673892273062,7.36107537,1561.6,1561.5,0.03965416]
[1673892274341,6.40368,1561.6,1561.5,0.03965416]
[1673892276705,26.08029268,1561.6,1561.5,0.03965416]
[1673892277178,27.99508343,1561.6,1561.5,0.03965416]
[1673892278226,27.85166873,1561.6,1561.5,0.03965416]
[1673892278441,27.20532955,1561.6,1561.5,0.03965416]
[1673892279381,27.99570262,1561.6,1561.5,0.03965416]
[1673892280347,21.59202262,1561.6,1561.5,0.03965416]
[1673892280543,13.02796978,1561.6,1561.5,0.03965416]
[1673892280946,12.07093052,1561.6,1561.5,0.03965416]
[1673892286219,0.95775149,1561.6,1561.5,0.97265416]
[1673892286795,0.95775149,1561.6,1561.5,0.03965416]
[1673892288749,2.39446374,1561.6,1561.5,0.03965416]
[1673892289260,1.43671225,1561.6,1561.5,0.03965416]
[1673892289627,2.39490281,1561.6,1561.5,0.03965416]
[1673892289841,1.43671225,1561.6,1561.5,0.03965416]
[1673892290737,2.39490195,1561.6,1561.5,0.03965416]
[1673892291886,19.8688563,1561.6,1561.5,0.03965416]
[1673892292109,31.66850427,1561.6,1561.5,0.03569296]
[1673892292262,30.2311148,1561.6,1561.5,0.03569296]
[1673892292684,32.62657337,1561.6,1561.5,0.03569296]
[1673892292918,30.2311148,1561.6,1561.5,0.03569296]
[1673892297853,30.71178262,1561.6,1561.5,0.03569296]
[1673892299776,28.31632405,1561.6,1561.5,0.03569296]
[1673892300368,30.71478486,1561.6,1561.5,0.03569296]
[1673892300566,28.31632405,1561.6,1561.5,0.03569296]
[1673892301668,31.17903284,1561.6,1561.5,0.03569296]
[1673892301983,28.96266323,1561.6,1561.5,0.03569296]
[1673892302142,28.31632405,1561.6,1561.5,0.03569296]
[1673892303611,33.51437202,1561.6,1561.5,0.03036064]
[1673892303824,30.65166323,1561.6,1561.5,0.03036064]
[1673892304088,31.59557472,1561.6,1561.5,0.03036064]
[1673892304665,39.49287472,1561.6,1561.5,0.03036064]
[1673892305774,41.19611239,1561.6,1561.5,0.03036064]
[1673892306512,37.67262405,1561.6,1561.5,0.03036064]
[1673892307108,40.54977321,1561.6,1561.5,0.03036064]
[1673892307462,40.54977321,1561.6,1561.4,0.04532313]
[1673892307463,51.16193954,1561.6,1561.4,0.04532313]
[1673892307639,32.7160341,1561.5,1561.4,0.0304577]
[1673892307825,37.59173746,1561.5,1561.4,0.0304577]
[1673892308035,35.84287328,1561.5,1561.4,0.0304577]
[1673892308289,38.71857618,1561.5,1561.4,0.0304577]
[1673892309037,43.71857618,1561.5,1561.4,0.0304577]
[1673892309224,40.84287328,1561.5,1561.4,0.0304577]
[1673892309444,43.71776023,1561.5,1561.4,0.0304577]
[1673892311751,36.71776023,1561.5,1561.4,0.0304577]
[1673892312502,2.0,1561.4,1561.1,0.04253157]
[1673892312822,6.82647057,1561.2,1561.1,0.04253157]
[1673892313188,30.31521735,1561.2,1561.1,0.04253157]
[1673892313349,28.84223513,1561.2,1561.1,0.04253157]
[1673892314090,26.92594297,1561.2,1561.1,0.04253157]
[1673892314987,21.47843265,1561.2,1561.1,0.04253157]
[1673892315248,20.04123646,1561.2,1561.1,0.04253157]
[1673892315626,26.44655646,1561.2,1561.1,0.04253157]
[1673892315836,30.86671194,1561.2,1561.1,0.04253157]
[1673892317853,13.76796968,1561.3,1561.1,0.97553157]
[1673892318076,4.23059646,1561.3,1561.1,0.97553157]
[1673892318247,10.63554646,1561.3,1561.1,0.97553157]
[1673892318455,9.67773678,1561.3,1561.1,0.97553157]
[1673892318977,0.95780968,1561.4,1561.1,22.17720157]
[1673892319216,2.39500587,1561.5,1561.1,23.67132786]
[1673892319433,0.95780968,1561.4,1561.1,23.68364921]
[1673892319653,0.95780968,1561.4,1561.1,20.18883888]
[1673892320247,0.95780968,1561.3,1561.1,0.97216888]
[1673892320494,4.23059646,1561.3,1561.1,0.03916888]
[1673892320874,4.23059646,1561.3,1561.1,0.02753157]
[1673892321637,10.63551646,1561.3,1561.1,0.02753157]
[1673892322133,10.63235756,1561.3,1561.1,0.02753157]
[1673892323858,9.67454788,1561.3,1561.1,0.02753157]
[1673892324077,10.63235756,1561.3,1561.1,0.02753157]
[1673892324456,9.67454788,1561.3,1561.1,0.02753157]
[1673892325074,3.26962788,1561.3,1561.1,0.02753157]
[1673892325599,4.22743756,1561.3,1561.1,0.02753157]
[1673892325950,10.63235756,1561.3,1561.1,0.02753157]
[1673892326595,17.03727756,1561.3,1561.1,0.02753157]
[1673892327799,4.23059646,1561.2,1561.1,0.02753157]
[1673892328017,23.44655646,1561.2,1561.1,0.02753157]
[1673892328283,24.88375265,1561.2,1561.1,0.02753157]
[1673892328544,23.92594297,1561.2,1561.1,0.02753157]
[1673892328764,24.40654297,1561.2,1561.1,0.02753157]
[1673892328993,31.17632033,1561.2,1561.1,0.02753157]
[1673892329208,32.61419007,1561.2,1561.1,0.02753157]
[1673892329593,30.69789791,1561.2,1561.1,0.02753157]
[1673892330827,24.29257791,1561.2,1561.1,0.02753157]
[1673892330965,9.44043528,1561.2,1561.1,0.96053157]
[1673892331336,4.23128415,1561.2,1561.1,0.02753157]
[1673892331502,10.63660415,1561.2,1561.1,0.02753157]
[1673892332046,17.04192415,1561.2,1561.1,0.02753157]
[1673892332260,26.17541775,1561.2,1561.1,0.02753157]
[1673892332435,27.61328749,1561.2,1561.1,0.02753157]
[1673892332908,26.65479012,1561.2,1561.1,0.31985314]
[1673892333081,28.57108228,1561.2,1561.1,0.31985314]
[1673892333291,27.13321254,1561.2,1561.1,0.31985314]
[1673892333499,28.5714695,1561.2,1561.1,0.31985314]
[1673892333741,4.85714695,1561.1,1561.0,0.04613707]
[1673892334066,28.50844325,1561.1,1561.0,0.04613707]
[1673892334292,31.07262827,1561.1,1561.0,0.04613707]
[1673892334430,14.81228,1561.0,1560.9,0.04935253]
[1673892334646,2.0,1560.9,1560.8,0.04613707]
[1673892334958,22.43400581,1560.9,1560.8,0.04613707]
[1673892335167,20.43400581,1560.9,1560.8,0.04613707]
[1673892336027,20.91470581,1560.9,1560.8,0.04613707]
[1673892336436,29.23911165,1560.9,1560.8,0.04613707]
[1673892337110,27.80063883,1560.9,1560.8,0.04613707]
[1673892337325,30.80063883,1560.9,1560.8,0.04613707]
[1673892337517,30.32035648,1560.9,1560.8,0.04613707]
[1673892337727,33.71120232,1560.9,1560.8,0.04613707]
[1673892337937,33.14997801,1560.9,1560.8,0.04613707]
[1673892338334,35.54732753,1560.9,1560.8,0.04613707]
[1673892338736,37.00732753,1560.9,1560.8,0.04613707]
[1673892338950,37.00634596,1560.9,1560.8,0.04613707]
[1673892339156,35.08948169,1560.9,1560.8,0.04613707]
[1673892339580,37.00544875,1560.9,1560.8,0.04613707]
[1673892339786,37.00544875,1560.9,1560.7,0.04613707]
[1673892340063,17.21878678,1560.8,1560.3,0.07122258]
[1673892340214,1.473,1560.4,1560.3,0.07122258]
[1673892340418,23.97161678,1560.4,1560.3,0.07122258]
[1673892341067,16.09000678,1560.4,1560.3,0.07122258]
[1673892341375,3.27278678,1560.4,1560.3,0.07122258]
[1673892343425,6.40821,1560.5,1560.3,0.07122258]
[1673892343584,6.40821,1560.5,1560.4,1.6962974]
[1673892343585,3.27278678,1560.5,1560.4,1.6962974]
[1673892343943,0.0106748,1560.6,1560.4,1.87416165]
[1673892344133,5.19420463,1561.2,1560.5,20.45000151]
[1673892344134,2.39531286,1561.2,1560.5,20.45000151]
[1673892344308,1.91625029,1561.3,1560.5,20.45000151]
[1673892344309,0.95812514,1561.3,1560.6,10.59250479]
[1673892344513,2.39531286,1561.3,1560.7,25.72143]
[1673892344773,2.39531286,1561.3,1560.9,16.27876]
[1673892344774,0.95812514,1561.3,1560.9,16.27876]
[1673892344983,0.95812514,1561.3,1561.0,6.41410077]
[1673892345408,1.43718772,1561.4,1561.0,0.00811077]
[1673892345409,2.39531286,1561.4,1561.0,0.00811077]
[1673892345618,0.95812514,1561.3,1561.0,0.00811077]
[1673892346001,0.95812514,1561.3,1560.8,6.40675]
[1673892346002,0.95812514,1561.2,1560.7,14.2871]
[1673892346233,0.95812514,1561.2,1560.7,14.29521232]
[1673892346572,3.27278678,1561.2,1560.7,14.29521232]
[1673892346745,3.27278678,1561.2,1560.8,3.473]
[1673892346938,3.27278678,1561.2,1560.8,9.8796]
[1673892348527,3.27278678,1561.2,1560.8,16.28657]
[1673892349312,0.95812514,1561.3,1560.8,16.28657]
[1673892349481,4.23091192,1561.3,1560.8,16.28657]
[1673892350344,4.23091192,1561.3,1560.7,6.40705]
[1673892350345,4.23091192,1561.2,1560.7,6.40705]
[1673892350549,3.27278678,1561.1,1560.6,37.99657]
[1673892350762,3.27278678,1561.0,1560.6,37.99657]
[1673892351193,3.27278678,1561.0,1560.6,7.86657]
[1673892352154,9.67897678,1561.0,1560.6,7.86657]
[1673892352312,3.27278678,1560.9,1560.6,7.86657]
[1673892352523,3.27278678,1560.9,1560.6,1.459]
[1673892352789,0.42309119,1561.1,1560.6,14.27445]
[1673892352944,3.27278678,1561.1,1560.8,6.40688]
[1673892353156,3.27278678,1561.1,1560.8,8.40688]
[1673892353402,3.27278678,1561.1,1560.8,14.8227756]
[1673892353630,15.68612286,1561.3,1560.8,22.6897456]
[1673892353631,7.84363514,1561.3,1560.8,22.6897456]
[1673892353780,3.27278678,1561.2,1560.8,22.6897456]
[1673892354160,0.95812514,1561.3,1560.8,22.6897456]
[1673892354309,3.27278678,1561.3,1560.9,1.458]
[1673892354518,13.23839801,1561.5,1561.0,7.87194]
[1673892354519,1.43862514,1561.5,1561.0,7.87194]
[1673892354767,4.23091192,1561.5,1561.0,20.68422]
[1673892354974,4.23091192,1561.5,1561.0,14.27808]
[1673892355367,4.23091192,1561.5,1561.0,16.28473564]
[1673892356100,4.23091192,1561.5,1561.0,14.28473564]
[1673892356833,3.27278678,1561.4,1561.0,14.28473564]
[1673892357036,3.27278678,1561.3,1561.0,0.00665564]
[1673892357247,3.27278678,1561.2,1560.9,12.4975]
[1673892357577,10.00539546,1561.2,1560.9,12.4975]
[1673892357796,10.00539546,1561.2,1560.8,12.8134]
[1673892358004,3.60006546,1561.2,1560.8,12.8134]
[1673892358455,3.27278678,1561.1,1560.6,42.9256]
[1673892358674,11.47941546,1561.0,1560.6,42.9256]
[1673892358982,3.27278678,1560.9,1560.5,8.95158445]
[1673892360400,9.67938678,1560.9,1560.5,8.95158445]
[1673892361675,6.40738,1560.7,1560.5,2.54368445]
[1673892361888,0.640738,1560.6,1560.5,2.54368445]
[1673892362099,3.27278678,1560.6,1560.5,2.54368445]
[1673892363139,9.68057678,1560.6,1560.5,2.54368445]
[1673892363348,9.68057678,1560.6,1560.3,42.99682258]
[1673892363594,9.68057678,1560.6,1560.3,0.07122258]
[1673892366236,3.27278678,1560.5,1560.3,0.07122258]
[1673892366385,0.32727868,1560.4,1560.3,0.07122258]
[1673892368071,0.80817868,1560.4,1560.3,0.07122258]
[1673892368302,4.08096546,1560.4,1560.3,0.07122258]
[1673892368511,17.87628546,1560.4,1560.3,0.07122258]
[1673892368759,16.41728546,1560.4,1560.3,0.07122258]
[1673892368911,16.89818546,1560.4,1560.3,0.07122258]
[1673892369263,16.89818546,1560.4,1560.3,0.06810056]
[1673892369649,23.30679546,1560.4,1560.3,0.06810056]
[1673892370506,16.89818546,1560.4,1560.3,0.06810056]
[1673892370731,4.08096546,1560.4,1560.3,0.06810056]
[1673892371337,23.30679546,1560.4,1560.3,0.06810056]
[1673892372394,23.53679546,1560.4,1560.3,0.06810056]
[1673892372633,26.53679546,1560.4,1560.3,0.06810056]
[1673892373960,22.49861678,1560.4,1560.3,1.00110056]
[1673892374200,16.51770286,1560.8,1560.3,1.00110056]
[1673892374420,3.27278678,1560.7,1560.3,1.00110056]
[1673892374642,3.27278678,1560.7,1560.3,0.06810056]
[1673892374643,3.27278678,1560.6,1560.3,0.06810056]
[1673892375321,3.27278678,1560.5,1560.3,0.06810056]
[1673892375582,6.40782,1560.6,1560.3,0.06810056]
[1673892375583,3.27278678,1560.4,1560.3,0.06810056]
[1673892375911,1.57648386,1560.4,1560.3,0.06810056]
[1673892376371,6.88823,1560.7,1560.3,0.06810056]
[1673892376586,9.68057678,1560.6,1560.3,0.06810056]
[1673892376860,9.68101678,1560.5,1560.3,0.06810056]
[1673892377002,3.27278678,1560.4,1560.3,0.06810056]
[1673892378425,3.27278678,1560.4,1560.3,0.01810056]
[1673892378858,4.88172846,1560.4,1560.3,0.01810056]
[1673892379085,11.29033846,1560.4,1560.3,0.01810056]
[1673892380185,25.56655846,1560.4,1560.3,0.01810056]
[1673892380384,29.27745846,1560.4,1560.3,0.01810056]
[1673892385125,13.16229678,1560.4,1560.3,0.01810056]
[1673892385346,10.16229678,1560.4,1560.3,0.01810056]
[1673892386559,9.68139678,1560.4,1560.3,0.01810056]
[1673892387440,10.16229678,1560.4,1560.3,0.01810056]
[1673892388280,3.27278678,1560.4,1560.3,0.95110056]
[1673892388494,0.4808,1560.6,1560.3,8.91731482]
[1673892388715,3.27278678,1560.6,1560.3,15.32633482]
[1673892390217,3.26887045,1560.6,1560.3,15.32633482]
[1673892390426,7.02810159,1560.7,1560.3,21.73535482]
[1673892390614,7.02810159,1560.7,1560.5,6.4082]
[1673892392746,7.02810159,1560.7,1560.4,14.28981]
[1673892392965,7.02810159,1560.7,1560.4,12.81681]
[1673892393283,3.27278678,1560.6,1560.3,8.83620476]
[1673892393647,3.27278678,1560.6,1560.3,7.90320476]
[1673892393961,5.27278678,1560.6,1560.3,6.43020476]
[1673892394174,3.27278678,1560.6,1560.3,0.02118476]
[1673892394960,6.32098313,1560.6,1560.3,0.02118476]
[1673892395113,3.27278678,1560.5,1560.3,0.01810056]
[1673892396650,3.27278678,1560.4,1560.3,0.01810056]
[1673892397022,3.27278678,1560.4,1560.0,58.64761338]
[1673892397233,3.27278678,1560.3,1560.0,58.64761338]
[1673892398061,3.27278678,1560.3,1560.0,45.84481338]
[1673892399070,3.27278678,1560.3,1560.0,52.25506338]
[1673892399373,1.57637019,1560.3,1560.1,2.0]
[1673892399528,1.57637019,1560.3,1560.1,14.81942]
[1673892400001,1.57637019,1560.3,1560.1,6.40958]
[1673892401650,0.95812514,1560.5,1560.1,19.22926]
[1673892401898,0.95812514,1560.5,1560.1,20.69526]
[1673892401899,4.23091192,1560.5,1560.1,20.69526]
[1673892402266,4.23091192,1560.5,1560.3,12.81804]
[1673892402267,3.27278678,1560.5,1560.3,12.81804]
[1673892402712,1.07739467,1560.6,1560.3,19.22706]
[1673892402934,4.23091192,1560.5,1560.1,25.96192]
[1673892403144,4.23091192,1560.5,1560.1,15.48296237]
[1673892403145,3.27278678,1560.4,1560.1,15.48296237]
[1673892403360,3.27278678,1560.4,1560.1,13.1425]
[1673892403568,3.27278678,1560.3,1560.0,33.81417054]
[1673892403779,3.27278678,1560.2,1560.1,1.59040817]
[1673892403990,3.27278678,1560.2,1560.0,33.81417054]
[1673892404209,3.27278678,1560.2,1560.0,32.86810056]
[1673892405200,0.95812514,1560.5,1560.1,7.99989116]
[1673892405409,4.23091192,1560.5,1560.1,8.75054383]
[1673892405669,4.23091192,1560.5,1560.1,17.16038383]
[1673892405879,4.23091192,1560.5,1560.1,15.16038383]
[1673892406260,4.23091192,1560.4,1560.0,40.22442054]
[1673892406487,3.27278678,1560.3,1560.0,39.27835056]
[1673892406722,3.27278678,1560.2,1560.0,39.27835056]
[1673892409854,1.07739467,1560.4,1560.0,52.09885056]
[1673892410202,1.07739467,1560.4,1560.2,19.22805]
[1673892410203,3.27278678,1560.4,1560.2,19.22805]
[1673892410351,0.95812514,1560.5,1560.3,1.08714104]
[1673892410565,3.27278678,1560.5,1560.3,12.81769]
[1673892411526,0.95812514,1560.6,1560.3,21.22671]
[1673892411769,4.23091192,1560.6,1560.3,21.22671]
[1673892411988,4.23091192,1560.6,1560.3,19.22671]
[1673892412139,0.95812514,1560.6,1560.3,19.22671]
[1673892412665,9.42341445,1560.7,1560.3,19.22671]
[1673892412873,11.25901351,1560.7,1560.3,20.69971]
[1673892413328,12.69620123,1560.7,1560.3,20.69971]
[1673892413522,12.69620123,1560.7,1560.3,6.40872]
[1673892413523,4.23091192,1560.6,1560.3,6.40872]
[1673892413738,10.63872192,1560.6,1560.3,6.40872]
[1673892414027,10.75799014,1560.6,1560.3,6.40872]
[1673892414496,4.35018014,1560.6,1560.3,6.40872]
[1673892414732,4.23091192,1560.6,1560.3,6.40872]
[1673892415409,3.27278678,1560.5,1560.3,6.40872]
[1673892415622,3.27278678,1560.5,1560.2,31.93110903]
[1673892416683,3.27278678,1560.5,1560.2,31.46313203]
[1673892417400,4.23091192,1560.5,1560.2,25.52175903]
[1673892417613,6.72011488,1560.5,1560.2,25.52175903]
[1673892418359,13.12837488,1560.5,1560.2,19.11252903]
[1673892418549,3.27278678,1560.4,1560.2,12.70335903]
[1673892418782,1.26527868,1560.3,1560.2,12.6993]
[1673892419150,0.938,1560.3,1560.1,14.25235]
[1673892419357,3.27278678,1560.3,1560.1,15.15903607]
[1673892421031,3.27278678,1560.3,1560.1,15.15887702]
[1673892422208,3.27278678,1560.3,1560.1,6.40975]
[1673892423303,3.27278678,1560.3,1560.1,8.74965401]
[1673892424513,3.27278678,1560.3,1560.1,15.15949401]
[1673892424685,3.27278678,1560.3,1560.1,8.74965401]
[1673892424875,3.27278678,1560.3,1560.1,15.15949401]
[1673892425351,3.27278678,1560.3,1560.1,15.15985634]
[1673892425733,10.68629338,1560.5,1560.1,23.04269634]
[1673892425947,12.40261192,1560.5,1560.1,23.04269634]
[1673892426178,12.52189244,1560.5,1560.1,23.04269634]
[1673892426500,12.52189244,1560.5,1560.1,23.98876632]
[1673892426933,12.52189244,1560.5,1560.2,1.59034914]
[1673892427089,16.31310348,1560.5,1560.3,6.40902]
[1673892427298,8.14140348,1560.5,1560.3,6.40902]
[1673892427973,8.02212296,1560.5,1560.3,6.40902]
[1673892428137,4.23091192,1560.5,1560.3,6.40902]
[1673892437333,4.23091192,1560.5,1560.2,19.22762]
[1673892438224,4.23091192,1560.5,1560.2,12.81837]
[1673892439753,10.63957192,1560.4,1560.1,8.75407563]
[1673892439908,3.27278678,1560.3,1560.1,8.75407563]
[1673892441655,3.27278678,1560.3,1560.1,15.16391563]
[1673892441842,3.27278678,1560.3,1560.2,1.59037288]
[1673892442064,3.27278678,1560.3,1560.2,6.40943]
[1673892442269,3.27278678,1560.3,1560.2,12.81886]
[1673892442693,0.95812514,1560.4,1560.2,19.22829]
[1673892446705,2.39531286,1560.5,1560.2,19.22829]
[1673892446871,5.66809964,1560.5,1560.2,19.22829]
[1673892447081,0.95812514,1560.4,1560.2,19.22829]
[1673892449014,4.23091192,1560.4,1560.2,19.22829]
[1673892449222,4.98934691,1560.4,1560.2,6.40943]
[1673892449437,0.95812514,1560.4,1560.2,19.22829]
[1673892449647,3.35343801,1560.5,1560.4,0.93605365]
[1673892449648,0.95812514,1560.5,1560.4,0.93605365]
[1673892449812,0.95812514,1560.5,1560.4,13.75327365]
[1673892450760,2.39531286,1560.5,1560.4,13.98147276]
[1673892451035,0.95812514,1560.6,1560.4,21.86008276]
[1673892452985,0.95812514,1560.6,1560.4,21.86414127]
[1673892453386,0.95812514,1560.6,1560.4,20.39414127]
[1673892454680,0.95812514,1560.6,1560.4,20.3912921]
[1673892455753,2.39531286,1560.7,1560.4,20.3912921]
[1673892456065,0.95812514,1560.6,1560.4,20.3912921]
[1673892456221,2.39531286,1560.7,1560.4,20.3912921]
[1673892458620,0.95812514,1560.6,1560.4,20.3912921]
[1673892459766,0.95812514,1560.6,1560.4,20.39108762]
[1673892460194,2.39531286,1560.7,1560.4,20.39108762]
[1673892460712,0.95812514,1560.6,1560.4,20.39108762]
[1673892461606,0.95812514,1560.6,1560.4,19.45808762]
[1673892462295,0.95812514,1560.6,1560.4,19.45402911]
[1673892462296,1.19765643,1560.6,1560.4,19.45402911]
[1673892462548,1.19765643,1560.6,1560.4,13.04541911]
[1673892462823,2.63484415,1560.6,1560.4,13.04541911]
[1673892465069,4.23091192,1560.5,1560.4,6.63680911]
[1673892465324,4.23091192,1560.5,1560.4,0.22819911]
[1673892465536,4.82167501,1560.5,1560.4,0.22819911]
[1673892465725,6.25886273,1560.5,1560.3,6.40873]
[1673892466068,0.95812514,1560.4,1560.2,26.05284]
[1673892466913,6.25886273,1560.5,1560.2,12.81834]
[1673892467085,0.95812514,1560.4,1560.2,12.81834]
[1673892467442,1.58401141,1560.4,1560.2,12.81834]
[1673892469141,6.25886273,1560.5,1560.2,12.81834]
[1673892469483,4.82167501,1560.5,1560.2,19.23182903]
[1673892470124,4.23091192,1560.5,1560.2,19.23182903]
[1673892470880,5.66809964,1560.5,1560.2,19.23182903]
[1673892471096,4.23091192,1560.5,1560.2,19.23182903]
[1673892471487,5.66809964,1560.5,1560.2,19.23182903]
[1673892472776,4.23091192,1560.5,1560.2,19.23182903]
[1673892472955,0.95812514,1560.5,1560.2,19.23182903]
[1673892474060,0.95812514,1560.6,1560.3,1.59022743]
[1673892474229,0.95812514,1560.8,1560.5,1.473]
[1673892474443,1.56275264,1560.9,1560.6,25.63116]
[1673892474444,2.40159726,1560.9,1560.6,25.63116]
[1673892474793,0.96440954,1560.9,1560.6,25.63116]
[1673892474946,0.0062844,1560.9,1560.6,25.63116]
[1673892475155,0.0062844,1560.9,1560.7,2.0]
[1673892475364,0.96440954,1560.9,1560.6,19.22337]
[1673892475634,0.0062844,1560.9,1560.6,20.69137]
[1673892476156,0.0062844,1560.9,1560.7,2.0]
[1673892476372,0.0062844,1560.9,1560.8,7.53997]
[1673892477055,0.0062844,1560.9,1560.8,13.94694]
[1673892477596,0.0062844,1560.9,1560.8,21.82691]
[1673892482358,0.00349142,1560.9,1560.8,21.82691]
[1673892483693,0.00349142,1560.9,1560.8,24.82691]
[1673892485989,0.00349104,1560.9,1560.8,24.82691]
[1673892487247,0.00349104,1560.9,1560.8,22.22091]
[1673892488438,0.00349104,1560.9,1560.8,19.22091]
[1673892488629,0.94149104,1560.9,1560.8,12.81394]
[1673892489986,0.00349104,1560.9,1560.8,12.81394]
[1673892490199,0.94149104,1560.9,1560.8,12.81394]
[1673892490443,1.03564014,1560.9,1560.7,26.46223979]
[1673892490618,1.03564014,1560.9,1560.7,20.05514979]
[1673892490828,1.03564014,1560.9,1560.7,12.88618979]
[1673892491039,1.51634014,1560.9,1560.7,12.88618979]
[1673892491678,2.47446528,1560.9,1560.7,12.88618979]
[1673892491891,1.18544653,1560.8,1560.7,6.47884979]
[1673892492141,1.18544653,1560.8,1560.5,12.82290788]
[1673892492539,1.18544653,1560.8,1560.4,6.4083]
[1673892492540,4.73178678,1560.7,1560.4,6.4083]
[1673892492741,3.27278678,1560.6,1560.2,50.1098]
[1673892492971,3.27278678,1560.6,1560.2,19.9798]
[1673892493242,3.60006546,1560.5,1560.2,19.9798]
[1673892493453,4.08096546,1560.5,1560.2,19.9798]
[1673892494424,4.08096546,1560.5,1560.2,6.4091]
[1673892497172,3.75368678,1560.5,1560.2,12.81853]
[1673892498013,3.27278678,1560.5,1560.2,12.81853]
[1673892499093,3.27278678,1560.5,1560.2,19.22796]
[1673892499307,3.27278678,1560.5,1560.2,19.22466143]
[1673892502975,0.4808,1560.6,1560.2,19.22466143]
[1673892503188,3.75358678,1560.6,1560.2,19.22466143]
[1673892505859,3.27278678,1560.5,1560.2,6.40580143]
[1673892506790,9.68110678,1560.5,1560.2,6.40580143]
[1673892506963,9.68110678,1560.5,1560.1,6.40948]
[1673892506964,4.73878678,1560.4,1560.1,6.40948]
[1673892507329,12.90305946,1560.4,1560.1,6.40948]
[1673892507539,9.63027268,1560.4,1560.1,6.40948]
[1673892507731,3.27278678,1560.3,1560.0,52.615212]
[1673892507952,3.27278678,1560.2,1560.0,32.946432]
[1673892508277,5.05906546,1560.1,1560.0,32.946432]
[1673892509012,3.60006546,1560.1,1560.0,32.946432]
[1673892511104,0.32727868,1560.1,1560.0,32.946432]
[1673892511268,0.4809,1560.2,1560.0,39.356682]
[1673892511744,1.9539,1560.3,1560.0,45.766932]
[1673892512056,1.9539,1560.3,1560.0,39.356682]
[1673892512057,5.22668678,1560.3,1560.0,39.356682]
[1673892512637,3.75368678,1560.3,1560.0,45.766932]
[1673892512905,5.22668678,1560.3,1560.0,45.766932]
[1673892513059,6.56577073,1560.3,1560.0,45.766932]
[1673892513649,5.09277073,1560.3,1560.0,45.766932]
[1673892513961,5.09277073,1560.3,1560.0,52.177182]
[1673892516706,3.75368678,1560.3,1560.0,52.177182]
[1673892517128,3.27278678,1560.3,1560.0,52.177182]
[1673892518267,1.75554268,1560.4,1560.0,52.177182]
[1673892518489,5.02832946,1560.4,1560.0,52.177182]
[1673892519288,5.02832946,1560.4,1560.0,52.127182]
[1673892520340,0.00349104,1560.1,1560.0,52.127182]
[1673892524238,0.00349104,1560.1,1560.0,52.097182]
[1673892529060,0.94149104,1560.1,1560.0,52.097182]
[1673892529257,0.00349104,1560.1,1560.0,52.097182]
[1673892530356,0.00349104,1560.1,1560.0,55.62566718]
[1673892532893,0.00349104,1560.1,1560.0,55.6326573]
[1673892534731,0.00349104,1560.1,1560.0,55.86708545]
[1673892538200,0.00349104,1560.1,1560.0,53.9290352]
[1673892538676,0.00349104,1560.1,1560.0,55.86881236]
[1673892539413,0.00349104,1560.1,1560.0,56.81488234]
[1673892539568,0.00349104,1560.1,1560.0,55.86881236]
[1673892540027,0.00349104,1560.1,1560.0,56.81488234]
[1673892540489,0.00349104,1560.1,1560.0,55.86881236]
[1673892541262,0.00349104,1560.1,1560.0,56.81488234]
[1673892542380,0.00349104,1560.1,1560.0,63.65349493]
[1673892543569,0.00349104,1560.1,1560.0,61.75367632]
[1673892544042,0.00349104,1560.1,1560.0,63.65349493]
[1673892544404,0.00349104,1560.1,1560.0,67.19241775]
[1673892544800,0.95812514,1560.5,1560.3,19.22706]
[1673892547608,2.39531286,1560.6,1560.3,19.22706]
[1673892548185,0.95812514,1560.5,1560.3,19.22706]
[1673892548769,2.39531286,1560.6,1560.3,19.22706]
[1673892549270,0.95812514,1560.6,1560.3,19.22706]
[1673892549485,2.39531286,1560.6,1560.3,19.22706]
[1673892549814,0.95812514,1560.6,1560.3,19.22706]
[1673892551129,2.39531286,1560.7,1560.3,19.22706]
[1673892552187,2.39531286,1560.7,1560.3,21.16461374]
[1673892552610,2.39531286,1560.7,1560.3,19.22706]
[1673892552828,0.95812514,1560.6,1560.3,19.22706]
[1673892553039,2.39531286,1560.7,1560.3,19.22706]
[1673892553854,0.95812514,1560.7,1560.3,19.22706]
[1673892554814,0.95812514,1560.7,1560.3,19.07556]
[1673892561442,11.10731386,1560.8,1560.3,21.01190277]
[1673892563134,9.67012614,1560.8,1560.3,21.01190277]
[1673892563559,11.10731386,1560.8,1560.3,21.01190277]
[1673892564255,11.10731386,1560.8,1560.3,21.0123662]
[1673892564469,14.96058361,1560.8,1560.3,21.0123662]
[1673892565312,0.95812514,1560.7,1560.3,19.07556]
[1673892565560,0.95812514,1560.7,1560.3,21.01256256]
[1673892565779,0.95812514,1560.7,1560.3,19.07556]
[1673892568312,0.95812514,1560.7,1560.3,21.01334508]
[1673892568517,14.96058361,1560.8,1560.3,21.01334508]
[1673892568831,1.49605836,1560.7,1560.4,1.59006452]
[1673892569046,1.49605836,1560.7,1560.5,19.2246]
[1673892569359,2.4541835,1560.7,1560.5,19.2246]
[1673892571833,0.95812514,1560.6,1560.4,12.81686]
[1673892577398,0.95812514,1560.6,1560.4,19.22547]
[1673892578132,2.39531286,1560.6,1560.4,19.22547]
[1673892579545,2.97607501,1560.6,1560.4,19.22547]
[1673892580419,2.97607501,1560.6,1560.4,6.40843]
[1673892580759,0.95812514,1560.5,1560.4,6.40843]
[1673892584115,0.95812514,1560.5,1560.3,12.81748]
[1673892584330,0.95812514,1560.4,1560.3,6.4087]
[1673892584597,1.34505643,1560.4,1560.3,6.4087]
[1673892588898,1.52095132,1560.4,1560.3,6.4087]
[1673892590421,9.38317611,1560.4,1560.1,12.81933]
[1673892590691,2.37229567,1560.3,1560.0,45.92084015]
[1673892591001,0.96040078,1560.1,1560.0,33.10086015]
[1673892591218,3.27278678,1560.1,1560.0,33.10086015]
[1673892592737,18.56246678,1560.1,1560.0,33.10086015]
[1673892593057,20.14003124,1560.1,1560.0,33.10086015]
[1673892593266,22.01967729,1560.1,1560.0,33.10086015]
[1673892593509,23.38007836,1560.1,1560.0,33.10086015]
[1673892593735,22.98007807,1560.1,1560.0,33.10086015]
[1673892593942,22.01967729,1560.1,1560.0,33.10086015]
[1673892594559,30.26698635,1560.1,1560.0,33.10086015]
[1673892594739,34.17394263,1560.1,1560.0,33.10086015]
[1673892595171,33.69477952,1560.1,1560.0,33.10086015]
[1673892595781,33.03882324,1560.1,1560.0,33.10086015]
[1673892596360,33.9327188,1560.1,1560.0,33.10086015]
[1673892596890,34.64188191,1560.1,1560.0,33.10086015]